fUSD/lending_fUSD_20250929
["ID","MTS","AMOUNT","RATE_DAILY","PERIOD"]
[388343173,1759110637356,-19127.31169744,0.00018645,2]
[388343174,1759110637371,-178141.57751669,0.00018645,2]
[388343175,1759110637382,-556.8968615,0.00018645,2]
[388343177,1759110637556,-789.20300167,0.00018645,2]
[388343194,1759110638066,-1498.39989264,0.00018645,2]
[388343196,1759110638077,-831.48579247,0.00018645,2]
[388343198,1759110638089,-34949.74930539,0.00018645,2]
[388343206,1759110638154,-4625.12352477,0.00018645,2]
[388343208,1759110638165,-322.38503972,0.00018645,2]
[388343210,1759110638177,-294.84302077,0.00018645,2]
[388343213,1759110638189,-1734.97613003,0.00018645,2]
[388343215,1759110638200,-2055.8702851,0.00018645,2]
[388343217,1759110638211,-843.19999999,0.00018645,2]
[388343295,1759110639157,1700.0,0.00011376,2]
[388343564,1759110641644,1700.0,0.00013595,2]
[388343856,1759110644478,-517.15908507,0.00015814,2]
[388343859,1759110644490,-395.47044682,0.00015814,2]
[388343874,1759110644619,-787.37046811,0.00015814,2]
[388343876,1759110644628,-728.0,0.00018627,2]
[388343878,1759110644638,-4405.15860497,0.00018645,2]
[388343880,1759110644649,-2828.08488756,0.00018645,2]
[388343883,1759110644673,-1700.0,0.00018034,2]
[388343885,1759110644682,-2022.3690796,0.00018645,2]
[388343888,1759110644693,-2482.18062421,0.00018645,2]
[388343970,1759110646674,-3000.0,0.00018645,2]
[388343971,1759110646685,-1500.04102813,0.00018645,2]
[388343972,1759110646696,-3369.8351151,0.00018645,2]
[388343976,1759110647327,-479.46258084,0.00018645,2]
[388343977,1759110647635,-5590.0188,0.00018645,2]
[388343978,1759110650835,-500.0,0.00017431,2]
[388343979,1759110650844,-408.25538402,0.00017431,2]
[388343980,1759110650853,-500.0,0.00017431,2]
[388343981,1759110650862,-500.0,0.00017431,2]
[388343982,1759110650872,-603.06525585,0.00017431,2]
[388343983,1759110650884,-500.0,0.00017431,2]
[388343984,1759110650893,-593.14,0.00017464,2]
[388343985,1759110650903,-593.14,0.00017738,2]
[388343986,1759110650912,-593.14,0.00018012,2]
[388343987,1759110650922,-593.14,0.00018285,2]
[388343988,1759110650932,-593.14,0.00018559,2]
[388343989,1759110650941,-371988.49284013,0.00018645,2]
[388343990,1759110651400,-318.6058158,0.00018645,2]
[388343991,1759110652204,-2961.79567411,0.00018645,2]
[388343993,1759110655018,-1493.89760249,0.00018645,2]
[388343994,1759110655030,-974.9999998,0.00018645,2]
[388343995,1759110655045,-2257.76982288,0.00018645,2]
[388343996,1759110655056,-1167.0,0.00018645,2]
[388343997,1759110655068,-336.39150869,0.00018645,2]
[388343998,1759110655080,-13423.74709304,0.00018645,2]
[388343999,1759110655243,-4589.74979942,0.00018645,2]
[388344000,1759110655255,-10866.0,0.00018645,2]
[388344001,1759110655337,-1072.68664258,0.00018645,2]
[388344002,1759110655348,-2223.74664,0.00018645,2]
[388344003,1759110655389,-3854.87184139,0.00018645,2]
[388344004,1759110655408,-23646.89686342,0.00018645,2]
[388344005,1759110655420,-15626.1451362,0.00018645,2]
[388344006,1759110655433,-3430.32527918,0.00018645,2]
[388344007,1759110655445,-13111.18193565,0.00018645,2]
[388344008,1759110655457,-910.07126,0.00018645,2]
[388344011,1759110735207,182.45,0.00014099,2]
[388344012,1759110753565,500.0,0.00030136,120]
[388344013,1759110753730,500.0,0.00030136,120]
[388344014,1759110754442,500.0,0.00030136,120]
[388344015,1759110754742,500.0,0.00030136,120]
[388344016,1759110755268,226.23711129,0.00030136,120]
[388344022,1759111033989,-260.14568314,0.00016191,2]
[388344024,1759111282267,935.01454,0.000245,30]
[388344026,1759111293125,1200.0,0.00013319,2]
[388344027,1759111294740,299.24480641,0.00015362,2]
[388344028,1759111296048,1281.377828,0.000245,30]
[388344029,1759111301311,1200.0,0.00013319,2]
[388344030,1759111317284,-230.68795133,0.00015362,2]
[388344031,1759111399135,-250.23676857,0.00015362,2]
[388344032,1759111401175,-191.91295,0.00015362,2]
[388344033,1759111403122,-196.73968068,0.00015362,2]
[388344034,1759111405946,-288.54812668,0.00015362,2]
[388344035,1759111411276,-41.87452274,0.00015362,2]
[388344036,1759111411297,-238.27098339,0.00016091,2]
[388344037,1759111414533,-215.18581851,0.00016091,2]
[388344038,1759111420672,-172.18632861,0.00016091,2]
[388344039,1759111423589,-162.20790555,0.00016091,2]
[388344041,1759111425627,-47.4199653,0.00016091,2]
[388344042,1759111465381,1000.0,0.00014811,2]
[388344044,1759111486559,1000.0,0.0003,120]
[388344045,1759111502797,1000.0,0.0003,120]
[388344046,1759111514687,1000.0,0.0003,120]
[388344047,1759111522261,6013.86825901,0.0003,120]
[388344048,1759111535527,1251.18,8.219e-05,2]
[388344049,1759111535766,1251.18,8.651e-05,2]
[388344050,1759111535947,1251.18,9.084e-05,2]
[388344051,1759111536205,1251.18,9.516e-05,2]
[388344052,1759111536458,1251.18,9.949e-05,2]
[388344053,1759111536680,1251.18,0.00010381,2]
[388344054,1759111536836,167.05310542,0.00010814,2]
[388344055,1759111536860,1084.12689458,0.00010814,2]
[388344056,1759111538030,1251.18,0.00011246,2]
[388344057,1759111538151,1251.18,0.00011679,2]
[388344058,1759111538364,1251.18,0.00012112,2]
[388344059,1759111538548,1251.18,0.00012544,2]
[388344060,1759111538731,1251.18,0.00012977,2]
[388344061,1759111538885,1251.18,0.00013409,2]
[388344062,1759111539088,1251.18,0.00013842,2]
[388344063,1759111539267,216.5065484,0.00014274,2]
[388344064,1759111539292,1034.6734516,0.00014274,2]
[388344065,1759111539829,1251.18,0.00014707,2]
[388344066,1759111541038,-365.4934516,0.00015139,2]
[388344067,1759111543418,-169.0,0.00015139,2]
[388344068,1759111546339,-300.0,0.00015139,2]
[388344069,1759111550384,-416.6865484,0.00015139,2]
[388344070,1759111550406,-61.88308129,0.00015572,2]
[388344071,1759111552956,-221.43037031,0.00015572,2]
[388344072,1759111554183,-500.0,0.00015572,2]
[388344073,1759111555891,-291.0,0.00015572,2]
[388344075,1759111560594,-176.8665484,0.00015572,2]
[388344076,1759111583331,1000.0,0.0003,120]
[388344077,1759111609139,1000.0,0.0003,120]
[388344078,1759111631627,1000.0,0.0003,120]
[388344079,1759111631764,-323.1334516,0.00015324,2]
[388344080,1759111635392,-312.41869605,0.00015324,2]
[388344081,1759111637727,-187.58130395,0.00015324,2]
[388344082,1759111639739,-176.8665484,0.00015324,2]
[388344083,1759111648584,1000.0,0.0003,120]
[388344084,1759111671636,1000.0,0.0003,120]
[388344086,1759111685118,1000.0,0.0003,120]
[388344087,1759111702140,1000.0,0.0003,120]
[388344089,1759111720076,-193.3069032,0.00015844,2]
[388344090,1759111724138,-500.0,0.00015844,2]
[388344091,1759111728418,-529.8265484,0.00015844,2]
[388344092,1759111730894,-132.4425974,0.00015844,2]
[388344093,1759111755438,-181.39,0.00016004,2]
[388344120,1759111833622,-1069.79,0.00016004,2]
[388344121,1759111833633,-830.90587294,0.00016057,2]
[388344122,1759111833644,-413.44706878,0.00016057,2]
[388344123,1759111833655,-755.64705828,0.00016057,2]
[388344124,1759111833665,-176.94450392,0.00016091,2]
[388344125,1759111833675,-1200.0,0.0001619,2]
[388344126,1759111833684,-1739.85431686,0.00016191,2]
[388344127,1759111833693,-313.462,0.00016191,2]
[388344128,1759111833702,-356.28,0.00016214,2]
[388344129,1759111833712,-1300.0,0.0001628,2]
[388344130,1759111833720,-250.0,0.00016329,2]
[388344131,1759111833730,-643.0,0.00016436,2]
[388344132,1759111833739,-1251.18,0.00016437,2]
[388344133,1759111833749,-2329.59,0.00016467,2]
[388344134,1759111833758,-302.65,0.00016467,2]
[388344135,1759111833767,-154.0,0.00016485,2]
[388344136,1759111833777,-250.0,0.00016486,2]
[388344137,1759111833786,-5538.25,0.00016486,2]
[388344138,1759111833795,-1160.14,0.00016486,2]
[388344139,1759111833805,-150.99,0.00016486,2]
[388344140,1759111833814,-2399.09,0.00016486,2]
[388344141,1759111833824,-8554.0,0.00016486,2]
[388344142,1759111833837,-3756.31,0.00016486,2]
[388344143,1759111833846,-5426.39,0.00016516,2]
[388344144,1759111833856,-203.57,0.00016565,2]
[388344145,1759111833867,-353.64334734,0.00016589,2]
[388344146,1759111833877,-597.33,0.00016602,2]
[388344147,1759111833886,-341.53,0.00016629,2]
[388344148,1759111833895,-156.11,0.00016712,2]
[388344149,1759111833906,-172.7,0.00016724,2]
[388344150,1759111833915,-681.5,0.00016778,2]
[388344151,1759111833924,-250.0,0.00017,2]
[388344152,1759111833933,-1000.0,0.00017223,2]
[388344153,1759111833942,-282.0,0.000174,2]
[388344154,1759111833952,-231.71,0.00017453,2]
[388344155,1759111833963,-341.53,0.0001746,2]
[388344156,1759111833972,-1000.0,0.00017477,2]
[388344157,1759111833982,-1004.69397309,0.00017483,2]
[388344158,1759111833993,-200.0,0.0001757,2]
[388344159,1759111834003,-641.43772717,0.00017572,2]
[388344160,1759111834013,-197.71,0.00017582,2]
[388344161,1759111834024,-165.02,0.00017586,2]
[388344162,1759111834035,-500.0,0.00017599,2]
[388344163,1759111834047,-150.0,0.000176,2]
[388344164,1759111834059,-2000.0,0.00017605,2]
[388344165,1759111834068,-1004.69397305,0.00017607,2]
[388344166,1759111834078,-1300.0,0.0001765,2]
[388344167,1759111834087,-172.73761058,0.000177,2]
[388344168,1759111834097,-163.41810442,0.000177,2]
[388344169,1759111834107,-2000.0,0.00017721,2]
[388344170,1759111834116,-3946.14651432,0.00017726,2]
[388344171,1759111834194,-3196.92559791,0.00017726,2]
[388344172,1759111834225,-1117.05861016,0.00017726,2]
[388344173,1759111834235,-161.77125101,0.00017726,2]
[388344174,1759111834244,-631.88541371,0.00017726,2]
[388344175,1759111834253,-239.84119403,0.00017726,2]
[388344176,1759111834263,-322.6107,0.00017726,2]
[388344177,1759111834272,-1004.69397305,0.00017731,2]
[388344178,1759111834281,-474.44399431,0.00017745,2]
[388344179,1759111834290,-1135.44990995,0.00017781,2]
[388344180,1759111834299,-272.0,0.00017786,2]
[388344181,1759111834308,-345.46281074,0.0001781,2]
[388344182,1759111834317,-250.0,0.0001781,2]
[388344183,1759111834326,-1004.69397305,0.00017855,2]
[388344184,1759111834336,-197.71,0.00017856,2]
[388344185,1759111834345,-300.0,0.00017863,2]
[388344186,1759111834356,-151.01,0.00017878,2]
[388344187,1759111834365,-150.0,0.0001789,2]
[388344188,1759111834375,-213.0,0.0001789,2]
[388344189,1759111834384,-196.41167997,0.0001789,2]
[388344190,1759111834432,-106.04832003,0.0001789,2]
[388344191,1759111834442,-338.3097171,0.0001789,2]
[388344192,1759111834452,-248.27,0.000179,2]
[388344193,1759111834461,-172.73761058,0.000179,2]
[388344194,1759111834470,-163.41810442,0.000179,2]
[388344195,1759111834480,-400.0,0.000179,6]
[388344196,1759111834489,-607.35044376,0.000179,2]
[388344197,1759111834498,-222.74,0.00017901,2]
[388344198,1759111834507,-1004.69397305,0.00017979,2]
[388344199,1759111834516,-2030.18,0.0001799,2]
[388344200,1759111834526,-2030.18,0.0001799,2]
[388344201,1759111834535,-151.0,0.00017997,2]
[388344202,1759111834545,-257.72116708,0.00017999,2]
[388344203,1759111834554,-500.0,0.00017999,2]
[388344204,1759111834565,-234.01585179,0.00017999,2]
[388344205,1759111834574,-546.42762034,0.00017999,2]
[388344206,1759111834584,-500.0,0.00017999,2]
[388344207,1759111834593,-225.75553126,0.00017999,2]
[388344208,1759111834603,-500.0,0.00017999,2]
[388344209,1759111834612,-370.35112681,0.00017999,2]
[388344210,1759111834621,-272.43225923,0.00017999,2]
[388344211,1759111834631,-60363.46576496,0.00018,2]
[388344212,1759111834642,-53630.66355279,0.00018,2]
[388344213,1759111834654,-52211.6524996,0.00018,2]
[388344214,1759111834664,-1710.36112943,0.00018,2]
[388344215,1759111834743,-276.50184424,0.00018,2]
[388344216,1759111834756,-393.2474532,0.00018,2]
[388344217,1759111834767,-323.3292545,0.00018,2]
[388344218,1759111834778,-587.00475801,0.00018,2]
[388344219,1759111834789,-632.79765073,0.00018,2]
[388344220,1759111834800,-1264.47378747,0.00018,2]
[388344221,1759111834874,-10568.75316172,0.00018,2]
[388344222,1759111834885,-392.54313184,0.00018,2]
[388344223,1759111834963,-295.99999997,0.00018,2]
[388344224,1759111834975,-2806.57946903,0.00018,2]
[388344295,1759111842022,-1000.0,0.000168,2]
[388344296,1759111842031,-3334.69999996,0.00018,2]
[388344297,1759111842042,-983.29365988,0.00018,2]
[388344298,1759111842074,-18821.06680281,0.00018,2]
[388344299,1759111842113,-413.68951215,0.00018,2]
[388344300,1759111842124,-924.14789005,0.00018,2]
[388344301,1759111842206,-636.07503734,0.00018,2]
[388344302,1759111844153,-2842.81728786,0.00018,2]
[388344303,1759111844165,-1639.02538588,0.00018,2]
[388344304,1759111844459,-264.01374067,0.00018,2]
[388344305,1759111844483,-3352.16353158,0.00018,2]
[388344306,1759111844494,-4621.54372914,0.00018,2]
[388344307,1759111844505,-556.27875531,0.00018,2]
[388344308,1759111844965,-446.08647671,0.00018,2]
[388344309,1759111845000,-3194.250153,0.00018,2]
[388344312,1759111847951,-586.74199804,0.00016485,2]
[388344313,1759111847960,-163.58,0.0001799,2]
[388344314,1759111847970,-12083.118801,0.00018,2]
[388344315,1759111848055,-685.05743074,0.00018,2]
[388344316,1759111848136,-306.0,0.00018,2]
[388344317,1759111850943,-4999.07760001,0.00018,2]
[388344318,1759111850955,-277.31,0.00018,2]
[388344319,1759111889629,1000.0,0.00014671,2]
[388344320,1759111978926,-1000.0,0.00016741,2]
[388344321,1759111978949,-1000.0,0.000178,2]
[388344322,1759111978972,-1000.0,0.000178,3]
[388344323,1759111978995,-167.05310542,0.000178,2]
[388344324,1759111979017,-1000.0,0.000178,4]
[388344325,1759111979039,-1000.0,0.000178,5]
[388344326,1759111979062,-1000.0,0.000179,2]
[388344327,1759111979085,-848.5416,0.000179,2]
[388344328,1759111979107,-2127.8734,0.000179,2]
[388344329,1759111979130,-322.6107,0.00017989,2]
[388344330,1759111979152,-204.02092077,0.00017989,2]
[388344331,1759111979176,-1024.90027381,0.00018,2]
[388344332,1759111995701,1000.0,0.00012554,2]
[388344333,1759111997341,298.56638071,0.00013202,2]
[388344334,1759111997364,701.43361929,0.00013202,2]
[388344335,1759111998770,543.19376529,0.00013849,2]
[388344336,1759111998796,456.80623471,0.00013849,2]
[388344337,1759112000342,1000.0,0.00014496,2]
[388344338,1759112008828,-738.74724328,0.00015143,2]
[388344339,1759112176963,176.42,0.00030136,120]
[388344340,1759112190158,-261.25275672,0.00015143,2]
[388344341,1759112190186,-477.49448656,0.00015791,2]
[388344342,1759112190442,-522.50551344,0.00015791,2]
[388344345,1759112504696,521.28306968,0.00030136,120]
[388344346,1759112532572,500.0,0.00030136,120]
[388344347,1759112533644,500.0,0.00030136,120]
[388344348,1759112533946,500.0,0.00030136,120]
[388344349,1759112534209,500.0,0.00030136,120]
[388344350,1759112534781,211.6,0.00030136,120]
[388344351,1759112616269,400.0,0.00030137,120]
[388344352,1759112638701,166.49,0.0001297,2]
[388344353,1759112642375,166.49,0.00014591,2]
[388344354,1759112725814,203.04630398,0.00027397,120]
[388344355,1759112768565,1607.920056,8e-05,2]
[388344356,1759112793149,-176.57,0.00015904,2]
[388344357,1759112824137,-249.74771761,0.00015,14]
[388344358,1759112836008,-250.0,0.00015,14]
[388344359,1759112837534,-141.36132662,0.00015,14]
[388344366,1759112885909,-250.0,0.00015904,2]
[388344369,1759112908426,280.91402349,7.888e-05,2]
[388344381,1759112927028,155.21823856,0.00030137,120]
[388344383,1759113001247,170.53,8.106e-05,2]
[388344384,1759113001356,170.53,9.457e-05,2]
[388344385,1759113001532,170.53,0.00010808,2]
[388344386,1759113001623,170.53,0.00012159,2]
[388344387,1759113001902,170.53,0.0001351,2]
[388344388,1759113002029,170.53,0.00014861,2]
[388344390,1759113008954,1000.0,0.00030136,120]
[388344400,1759113023116,-615.01206055,0.00015791,2]
[388344405,1759113031094,-384.98793945,0.00015791,2]
[388344406,1759113031116,-115.01206055,0.00015791,2]
[388344480,1759113036922,-433.60154784,0.00015791,2]
[388344481,1759113036934,-451.38639161,0.00015791,2]
[388344482,1759113036944,-1000.0,0.00015791,2]
[388344483,1759113036953,-314.41759241,0.00015791,2]
[388344484,1759113036965,-685.58240759,0.00015791,2]
[388344485,1759113036975,-368.386,0.00015791,2]
[388344486,1759113036985,-232.86218112,0.00015904,2]
[388344487,1759113037000,-254.70132619,0.00015904,2]
[388344488,1759113037011,-500.0,0.00015904,2]
[388344489,1759113037021,-40.41518524,0.000161,2]
[388344490,1759113037033,-179.39481476,0.000161,2]
[388344491,1759113037043,-362.18107501,0.000161,2]
[388344492,1759113037124,-862.49007233,0.000161,2]
[388344493,1759113037150,-80.77879417,0.000161,2]
[388344494,1759113037160,-150.0,0.00016189,2]
[388344495,1759113037171,-167.57,0.00016205,2]
[388344496,1759113037181,-170.53,0.00016212,2]
[388344497,1759113037192,-166.49,0.00016212,2]
[388344498,1759113037202,-1735.16,0.00016228,2]
[388344499,1759113037213,-312.04,0.00016301,2]
[388344500,1759113037223,-167.21,0.00016312,2]
[388344501,1759113037234,-1000.0,0.00016438,2]
[388344502,1759113037244,-828.51,0.00016477,2]
[388344503,1759113037256,-1200.0,0.00016499,2]
[388344504,1759113037266,-158.0,0.00016499,2]
[388344505,1759113037277,-550.0,0.00016499,2]
[388344506,1759113037287,-250.0,0.000165,2]
[388344507,1759113037297,-9999.99,0.000165,2]
[388344508,1759113037307,-150.99,0.000165,2]
[388344509,1759113037317,-150.99,0.000165,2]
[388344510,1759113037327,-4276.23,0.000165,2]
[388344511,1759113037338,-250.0,0.00016634,2]
[388344512,1759113037348,-169.01,0.00016716,2]
[388344513,1759113037359,-1945.35228265,0.00016779,2]
[388344514,1759113037369,-1200.0,0.00016863,2]
[388344515,1759113037380,-2843.5,0.00016864,2]
[388344516,1759113037390,-1324.53,0.00016927,2]
[388344517,1759113037400,-250.0,0.00017,2]
[388344518,1759113037410,-500.0,0.00017072,2]
[388344519,1759113037420,-500.0,0.00017072,2]
[388344520,1759113037429,-513.49222855,0.00017072,2]
[388344521,1759113037447,-500.0,0.00017072,2]
[388344522,1759113037457,-313.4589929,0.00017072,2]
[388344523,1759113037467,-500.0,0.00017072,2]
[388344524,1759113037478,-500.0,0.00017072,2]
[388344525,1759113037489,-500.0,0.00017072,2]
[388344526,1759113037499,-500.0,0.00017072,2]
[388344527,1759113037510,-500.0,0.00017072,2]
[388344528,1759113037520,-500.0,0.00017072,2]
[388344529,1759113037530,-500.0,0.00017072,2]
[388344530,1759113037540,-500.0,0.00017072,2]
[388344531,1759113037550,-500.0,0.00017072,2]
[388344533,1759113037561,-500.0,0.00017072,2]
[388344534,1759113037572,-500.0,0.00017072,2]
[388344535,1759113037582,-500.0,0.00017072,2]
[388344536,1759113037592,-500.0,0.00017072,2]
[388344537,1759113037603,-500.0,0.00017072,2]
[388344538,1759113037615,-500.0,0.00017072,2]
[388344539,1759113037625,-500.0,0.00017072,2]
[388344540,1759113037636,-500.0,0.00017072,2]
[388344541,1759113037652,-500.0,0.00017072,2]
[388344542,1759113037663,-381.89445217,0.00017072,2]
[388344543,1759113037674,-500.0,0.00017072,2]
[388344544,1759113037684,-500.0,0.00017072,2]
[388344545,1759113037695,-500.0,0.00017072,2]
[388344546,1759113037706,-500.0,0.00017072,2]
[388344547,1759113037717,-500.0,0.00017072,2]
[388344548,1759113037728,-500.0,0.00017072,2]
[388344549,1759113037739,-500.0,0.00017072,2]
[388344550,1759113037750,-500.0,0.00017072,2]
[388344551,1759113037761,-151.0,0.00017075,2]
[388344552,1759113037771,-151.0,0.00017075,2]
[388344554,1759113037782,-155.03730252,0.00017075,2]
[388344556,1759113037792,-202.04263158,0.00017075,2]
[388344558,1759113037803,-297.10847124,0.00017075,2]
[388344559,1759113037813,-276.40270549,0.00017075,2]
[388344560,1759113037824,-151.0,0.00017075,2]
[388344561,1759113037839,-151.0,0.00017075,2]
[388344562,1759113037850,-151.0,0.00017075,2]
[388344563,1759113037860,-151.0,0.00017075,2]
[388344564,1759113037870,-151.0,0.00017075,2]
[388344565,1759113037881,-151.0,0.00017075,2]
[388344566,1759113037891,-151.0,0.00017075,2]
[388344567,1759113037903,-151.0,0.00017075,2]
[388344568,1759113037913,-151.0,0.00017075,2]
[388344569,1759113037923,-151.0,0.00017075,2]
[388344570,1759113037934,-151.0,0.00017075,2]
[388344571,1759113037945,-151.0,0.00017075,2]
[388344572,1759113037956,-151.0,0.00017075,2]
[388344573,1759113037967,-151.0,0.00017075,2]
[388344574,1759113037977,-151.0,0.00017075,2]
[388344575,1759113037987,-151.0,0.00017075,2]
[388344576,1759113037998,-151.0,0.00017075,2]
[388344577,1759113038008,-151.0,0.00017075,2]
[388344578,1759113038018,-156.76906124,0.00017075,2]
[388344579,1759113038029,-29589.81591468,0.00017075,2]
[388344580,1759113038039,-1000.0,0.00017084,2]
[388344581,1759113038050,-1000.0,0.00017085,2]
[388344582,1759113038061,-209.66,0.00017088,2]
[388344583,1759113038072,-281.0,0.000173,2]
[388344584,1759113038084,-975.82576321,0.00017433,2]
[388344585,1759113038095,-975.82576321,0.00017433,2]
[388344586,1759113038105,-2127.44902706,0.00017494,2]
[388344587,1759113038116,-2000.0,0.00017494,2]
[388344588,1759113038127,-195.0,0.00017494,2]
[388344589,1759113038138,-300.0,0.00017494,2]
[388344590,1759113038148,-300.0,0.00017494,2]
[388344591,1759113038159,-250.0,0.00017494,2]
[388344592,1759113038169,-500.0,0.00017494,2]
[388344593,1759113038180,-500.0,0.00017494,2]
[388344594,1759113038190,-500.0,0.00017494,2]
[388344595,1759113038201,-500.0,0.00017494,2]
[388344596,1759113038211,-500.0,0.00017494,2]
[388344597,1759113038226,-195.0,0.00017494,2]
[388344598,1759113038237,-600.0,0.000175,6]
[388344599,1759113038247,-29785.28859621,0.00017519,2]
[388344600,1759113038258,-150.0,0.00017534,2]
[388344601,1759113038269,-151.66,0.00017534,2]
[388344602,1759113038279,-412.11,0.00017534,2]
[388344604,1759113038290,-1300.0,0.000176,6]
[388344606,1759113038300,-402.8,0.00017603,2]
[388344608,1759113038310,-150.0,0.00017603,2]
[388344610,1759113038320,-150.0,0.00017603,2]
[388344612,1759113038331,-150.0,0.00017603,2]
[388344614,1759113038341,-150.0,0.00017603,2]
[388344616,1759113038352,-150.0,0.00017603,2]
[388344619,1759113038363,-150.0,0.00017603,2]
[388344621,1759113038374,-200.0,0.00017603,2]
[388344623,1759113038384,-935.0,0.00017621,2]
[388344625,1759113038394,-151.0,0.00017636,2]
[388344627,1759113038405,-29785.28859621,0.00017639,2]
[388344629,1759113038416,-168.0,0.00017671,2]
[388344631,1759113038427,-150.0,0.00017678,2]
[388344633,1759113038437,-178.71,0.00017678,2]
[388344635,1759113038448,-412.11,0.00017678,2]
[388344637,1759113038459,-239.84119403,0.00017683,2]
[388344639,1759113038471,-6926.00594018,0.00017683,2]
[388344641,1759113038481,-322.6107,0.00017683,2]
[388344644,1759113038492,-2000.0,0.000177,6]
[388344646,1759113038502,-168.0,0.00017702,2]
[388344648,1759113038513,-28278.4029922,0.00017705,2]
[388344650,1759113038523,-514.02506854,0.00017719,2]
[388344652,1759113038533,-1000.0,0.00017732,2]
[388344654,1759113038544,-474.44399431,0.00017745,2]
[388344656,1759113038554,-224.0,0.0001775,2]
[388344658,1759113038565,-29785.28859621,0.00017759,2]
[388344660,1759113038576,-160.66356158,0.00017779,2]
[388344662,1759113038587,-869.01818911,0.00017784,2]
[388344664,1759113038598,-2000.0,0.000178,2]
[388344667,1759113038611,-698.20702908,0.000178,2]
[388344669,1759113038622,-2700.0,0.000178,6]
[388344671,1759113038632,-1000.0,0.00017808,2]
[388344673,1759113038645,-971.0826853,0.00017808,2]
[388344675,1759113038656,-1961.27258,0.0001782,2]
[388344677,1759113038667,-166.49,0.00017834,2]
[388344679,1759113038678,-175.0,0.00017862,2]
[388344681,1759113038688,-151.0,0.00017876,2]
[388344683,1759113038699,-151.0,0.00017876,2]
[388344685,1759113038710,-151.0,0.00017876,2]
[388344687,1759113038721,-151.0,0.00017876,2]
[388344689,1759113038732,-150.0,0.00017877,2]
[388344692,1759113038743,-150.0,0.00017877,2]
[388344694,1759113038753,-150.0,0.00017877,2]
[388344696,1759113038765,-150.0,0.00017877,2]
[388344698,1759113038776,-150.0,0.00017877,2]
[388344700,1759113038787,-150.0,0.00017877,2]
[388344702,1759113038798,-402.8,0.00017877,2]
[388344704,1759113038809,-62764.83330792,0.00017879,2]
[388344706,1759113038820,-151.0,0.00017879,2]
[388344709,1759113038834,-151.0,0.00017879,2]
[388344711,1759113038844,-151.0,0.00017879,2]
[388344712,1759113038854,-151.0,0.00017879,2]
[388344715,1759113038865,-151.0,0.00017879,2]
[388344717,1759113038875,-151.0,0.00017879,2]
[388344719,1759113038886,-151.0,0.00017879,2]
[388344721,1759113038896,-151.0,0.00017879,2]
[388344723,1759113038907,-151.0,0.00017879,2]
[388344724,1759113038920,-151.0,0.00017879,2]
[388344727,1759113038931,-151.0,0.00017879,2]
[388344729,1759113038941,-151.0,0.00017879,2]
[388344731,1759113038950,-151.0,0.00017879,2]
[388344733,1759113038961,-151.0,0.00017879,2]
[388344735,1759113038972,-151.0,0.00017879,2]
[388344737,1759113038982,-151.0,0.00017879,2]
[388344739,1759113038993,-151.0,0.00017879,2]
[388344741,1759113039003,-151.0,0.00017879,2]
[388344743,1759113039013,-151.0,0.00017879,2]
[388344745,1759113039023,-151.0,0.00017879,2]
[388344747,1759113039034,-151.0,0.00017879,2]
[388344749,1759113039044,-151.0,0.00017879,2]
[388344751,1759113039054,-151.0,0.00017879,2]